bitfinex/quotes_ETHUSD_20220202
["timestamp","ask_amount","ask_price","bid_price","bid_amount"]
[1643805695177,0.143486,2791.7,2791.1,1.41151]
[1643805696424,0.82165465,2791.7,2791.1,1.41151]
[1643805697522,0.143486,2791.7,2791.1,1.41151]
[1643805698124,0.20259,2792.9,2791.3,6.45]
[1643805698332,0.02623,2792.7,2791.6,0.0120087]
[1643805698530,3.6447,2793.1,2792.3,0.01284102]
[1643805698531,0.87458197,2792.8,2792.3,0.01284102]
[1643805698728,0.87458197,2792.8,2792.1,0.3215]
[1643805698927,0.02265,2792.7,2792.1,0.3215]
[1643805699327,0.04433703,2792.6,2792.1,0.3215]
[1643805699772,0.04376861,2792.5,2792.1,0.3215]
[1643805699969,0.04376861,2792.5,2792.1,1.21663]
[1643805700170,0.04320018,2792.4,2792.1,1.21663]
[1643805700577,0.04263176,2792.3,2792.1,0.3215]
[1643805700972,0.04206334,2792.2,2792.1,0.3215]
[1643805701771,0.04206334,2792.2,2791.9,1.816]
[1643805701976,0.04206334,2792.2,2791.9,0.816]
[1643805702174,0.04149491,2792.1,2791.9,0.516]
[1643805702572,0.04092649,2792.0,2791.9,0.73019085]
[1643805702773,0.04092649,2792.0,2791.9,2.61588965]
[1643805702972,0.04092649,2792.0,2791.9,3.61588965]
[1643805704230,0.04092649,2792.0,2791.9,2.61588965]
[1643805704432,0.04092649,2792.0,2791.9,2.4016988]
[1643805704928,0.04092649,2792.0,2791.9,3.4016988]
[1643805705129,0.02983,2793.0,2792.0,5.05]
[1643805705335,0.02983,2793.0,2792.1,4.35901452]
[1643805705528,0.02983,2793.0,2792.1,5.55406452]
[1643805705927,0.02983,2793.0,2792.2,0.77277873]
[1643805706128,0.02983,2793.0,2792.3,2.56209374]
[1643805706331,0.02983,2793.0,2792.4,0.516]
[1643805706533,0.02983,2793.0,2791.9,0.516]
[1643805706730,1.02982999,2793.0,2791.9,0.516]
[1643805706966,0.02983,2793.0,2791.9,0.516]
[1643805707170,0.32983,2793.0,2791.9,0.516]
[1643805707369,0.02983,2793.0,2791.9,0.516]
[1643805707569,0.02983,2793.0,2791.9,0.6949]
[1643805707570,0.83956584,2792.3,2791.9,0.6949]
[1643805707771,0.83956584,2792.3,2791.9,0.516]
[1643805708279,0.02983,2793.0,2791.9,0.516]
[1643805708474,0.32983,2793.0,2791.9,0.516]
[1643805708773,0.32983,2793.0,2791.7,1.1789]
[1643805708973,0.32983,2793.0,2791.7,3.14538793]
[1643805709174,0.32983,2793.0,2791.7,2.14538793]
[1643805709472,0.78079468,2792.5,2791.8,1.0]
[1643805709674,0.78079468,2792.5,2791.9,0.1789]
[1643805709873,0.78079468,2792.5,2791.7,0.1789]
[1643805709874,1.08079468,2792.5,2791.7,0.1789]
[1643805710478,1.08079468,2792.5,2791.7,0.1289]
[1643805710730,0.07985,2792.4,2791.7,0.1289]
[1643805711735,0.07985,2792.4,2791.7,1.1289]
[1643805712334,0.07985,2792.4,2791.8,2.45509774]
[1643805712735,0.07985,2792.4,2791.8,3.45509774]
[1643805713942,0.07985,2792.4,2791.9,0.1789]
[1643805714139,1.1106382,2793.5,2791.9,0.1789]
[1643805714140,0.07985,2792.9,2791.9,0.6949]
[1643805714339,0.07985,2793.0,2792.1,0.89519]
[1643805714775,0.76610202,2792.7,2792.1,0.89519]
[1643805715777,0.07985,2792.8,2792.1,0.89519]
[1643805715976,0.07985,2793.0,2792.2,1.90535515]
[1643805716182,0.07985,2793.0,2792.1,0.89519]
[1643805716577,0.07985,2793.0,2792.2,1.94236526]
[1643805716778,0.7572403,2792.9,2792.1,0.89519]
[1643805718090,0.07985,2792.8,2792.1,0.89519]
[1643805718732,0.07985,2792.8,2791.8,0.1789]
[1643805718733,1.62195069,2791.9,2791.8,0.1789]
[1643805718928,0.99999999,2792.7,2791.5,0.1789]
[1643805718929,0.07985,2792.6,2791.5,0.1789]
[1643805719125,0.37985,2792.6,2791.5,0.1789]
[1643805719324,2.88244,2792.6,2791.5,0.1789]
[1643805719526,3.88244,2792.6,2791.5,0.1789]
[1643805719728,1.0,2792.5,2791.5,0.1789]
[1643805719926,0.19146336,2792.1,2791.2,0.1789]
[1643805720129,0.19146336,2792.1,2791.2,2.1789]
[1643805720926,0.19146336,2792.1,2791.2,0.1789]
[1643805721333,0.07985,2792.0,2791.2,0.1789]
[1643805721526,0.07985,2792.0,2791.4,0.13819997]
[1643805721527,0.87625531,2791.5,2791.4,0.13819997]
[1643805721973,0.07985,2792.0,2791.4,0.13819997]
[1643805722972,0.69551671,2791.7,2791.4,0.13819997]
[1643805723679,0.69551671,2791.7,2791.1,1.07461]
[1643805723882,0.69551671,2791.7,2791.1,0.89551]
[1643805724481,0.07985,2792.0,2791.1,0.89551]
[1643805725481,0.80465965,2791.8,2791.1,0.89551]
[1643805725721,0.07985,2792.0,2791.1,0.89551]
[1643805726923,0.79777086,2791.9,2791.1,0.89551]
[1643805728223,0.07985,2791.8,2791.1,0.89551]
[1643805728627,0.07985,2791.8,2790.9,0.1791]
[1643805728828,0.07985,2791.8,2790.9,0.4791]
[1643805729879,0.72478616,2791.4,2790.9,0.4791]
[1643805730080,1.22615,2791.9,2790.9,0.4791]
[1643805730680,1.22615,2791.9,2791.0,1.86672566]
[1643805731077,0.84475333,2791.7,2791.0,1.86672566]
[1643805731277,0.84475333,2791.7,2790.9,0.4791]
[1643805732089,7.47,2792.0,2790.9,0.4791]
[1643805732090,13.8856,2792.3,2791.0,8.45]
[1643805732290,7.47,2792.4,2791.1,3.57983]
[1643805732486,7.47,2792.4,2791.7,0.01231272]
[1643805732683,7.47,2792.4,2791.8,0.87367]
[1643805732984,8.884,2793.1,2791.8,1.67675705]
[1643805732985,0.85164768,2792.6,2791.8,1.67675705]
[1643805733223,0.85164768,2792.6,2791.8,1.47367]
[1643805733430,0.85164768,2792.6,2791.8,2.47367]
[1643805733630,0.85164768,2792.6,2791.8,2.17367]
[1643805734629,0.85164768,2792.6,2791.9,1.91474311]
[1643805734830,0.85164768,2792.6,2792.0,0.1789]
[1643805735427,0.85164768,2792.6,2791.9,3.60964311]
[1643805735627,0.85164768,2792.6,2791.9,2.60964311]
[1643805735828,0.85164768,2792.6,2792.0,1.0]
[1643805736226,0.85164768,2792.6,2791.9,2.90964311]
[1643805736227,0.85164768,2792.6,2791.9,2.60964311]
[1643805736427,0.85164768,2792.6,2792.0,0.38660735]
[1643805737472,1.11746529,2792.5,2792.0,0.38660735]
[1643805737672,1.11746529,2792.5,2792.1,1.86343612]
[1643805737875,1.11746529,2792.5,2792.2,0.38660735]
[1643805738480,1.11746529,2792.5,2792.3,1.85504652]
[1643805738678,0.85164768,2792.6,2792.4,0.38660735]
[1643805738879,0.85164768,2792.6,2792.0,1.97346315]
[1643805739079,0.85164768,2792.6,2792.1,0.38731535]
[1643805739279,1.11780678,2792.5,2792.1,0.38731535]
[1643805739484,0.85164768,2792.6,2792.1,0.38731535]
[1643805739879,8.884,2793.1,2792.3,0.89523]
[1643805740187,5.1716491,2793.3,2792.4,2.90331535]
[1643805740188,1.11771002,2793.0,2792.4,2.90331535]
[1643805740381,1.11771002,2792.9,2792.5,0.56621535]
[1643805740578,3.2468,2793.3,2792.6,0.38731535]
[1643805740824,3.2468,2793.3,2792.8,0.89504]
[1643805740825,1.15164841,2793.2,2792.8,0.89504]
[1643805741029,0.8012488,2792.9,2792.8,0.89504]
[1643805741325,0.8012488,2792.9,2792.8,1.24858233]
[1643805741525,3.2468,2793.3,2792.8,1.24858233]
[1643805741730,1.14189702,2793.2,2792.8,0.89504]
[1643805742328,1.09189702,2793.1,2792.9,2.3048865]
[1643805742528,1.09189702,2793.1,2792.9,1.94216913]
[1643805742529,0.90310207,2793.1,2792.9,1.94216913]
[1643805742827,0.01,2793.4,2792.9,1.94216913]
[1643805743633,0.70233383,2793.3,2792.9,1.94216913]
[1643805745173,0.70233383,2793.3,2792.8,0.89504]
[1643805745573,0.70233383,2793.3,2792.8,2.8010213]
[1643805747074,0.70233383,2793.3,2792.8,0.89504]
[1643805747280,0.70233383,2793.3,2792.8,2.74691204]
[1643805747473,0.70233383,2793.3,2792.9,1.84952864]
[1643805747674,0.70233383,2793.3,2792.8,0.89504]
[1643805748730,0.70233383,2793.3,2792.8,1.89504]
[1643805748932,0.01,2793.4,2792.8,1.89504]
[1643805749733,0.01,2793.4,2792.8,0.89504]
[1643805750232,0.94633115,2793.2,2792.8,0.89504]
[1643805751532,0.01,2793.4,2792.8,0.89504]
[1643805751745,1.82407299,2794.8,2793.1,0.01297684]
[1643805751746,0.6861491,2794.5,2793.1,0.01297684]
[1643805751984,3.98969475,2794.8,2793.2,2.30562]
[1643805751985,2.0,2794.4,2793.2,2.30562]
[1643805752382,2.0,2794.4,2793.2,3.30562]
[1643805752588,2.0,2794.4,2793.2,2.30562]
[1643805752783,2.6861491,2794.7,2793.3,1.3]
[1643805752990,3.077,2794.8,2793.3,1.3]
[1643805752991,3.077,2794.8,2793.5,0.8948]
[1643805753187,3.077,2794.8,2793.6,0.516]
[1643805753389,3.8010491,2795.1,2793.8,1.78908]
[1643805753595,3.8010491,2795.1,2793.9,2.87367]
[1643805753596,3.1149,2795.1,2793.9,2.87367]
[1643805753790,0.68333291,2794.9,2793.9,3.47367]
[1643805753992,0.68333291,2794.9,2794.0,1.0]
[1643805754190,0.6861491,2795.4,2794.1,3.05957272]
[1643805754391,0.6861491,2795.5,2794.3,0.90646721]
[1643805754590,0.007,2795.6,2794.4,3.3622519]
[1643805754790,0.007,2795.6,2794.5,1.0]
[1643805755097,0.007,2795.6,2794.6,2.16585858]
[1643805755289,0.70565782,2795.2,2794.6,2.16585858]
[1643805755488,0.70565782,2795.2,2794.5,3.516]
[1643805755722,0.70565782,2795.2,2794.6,1.0]
[1643805755928,0.70565782,2795.2,2794.7,0.89433]
[1643805756323,0.70565782,2795.2,2794.7,1.89433]
[1643805756522,0.007,2795.6,2794.8,2.0]
[1643805756727,0.007,2795.6,2794.9,0.516]
[1643805757127,0.007,2795.6,2794.9,1.516]
[1643805757323,0.007,2795.6,2794.9,0.516]
[1643805757523,0.76293023,2795.5,2794.9,1.516]
[1643805757731,0.95705718,2795.5,2794.9,0.516]
[1643805757924,0.95705718,2795.5,2794.9,1.516]
[1643805758124,0.95705718,2795.5,2794.9,0.516]
[1643805758329,2.0,2795.4,2794.6,1.78866]
[1643805758533,1.25705718,2795.5,2794.4,0.1787]
[1643805758730,0.8102523,2794.5,2794.2,0.8946]
[1643805758929,2.0,2795.4,2794.2,0.8946]
[1643805758930,3.6651,2795.3,2794.2,0.8946]
[1643805759129,0.19412695,2795.5,2794.2,1.07337]
[1643805759784,0.19412695,2795.5,2794.2,0.8946]
[1643805759989,0.93648447,2794.5,2794.2,0.8946]
[1643805760187,0.52089694,2794.5,2794.2,0.8946]
[1643805760589,0.19412695,2795.5,2794.3,2.03737214]
[1643805760789,0.19412695,2795.5,2794.2,0.8946]
[1643805761889,0.7903126,2794.4,2794.2,0.8946]
[1643805762097,0.7903126,2794.4,2794.1,1.1789]
[1643805762098,0.7903126,2794.4,2794.1,0.1789]
[1643805762299,0.7903126,2794.4,2793.3,0.1789]
[1643805762300,1.0903126,2794.4,2793.3,0.1789]
[1643805762495,1.0903126,2794.4,2793.3,2.1789]
[1643805762791,0.1789,2794.3,2793.0,3.07384]
[1643805762999,0.1789,2794.3,2793.1,0.29092947]
[1643805763224,0.24821974,2794.3,2793.2,2.35767]
[1643805763425,0.24821974,2794.3,2793.2,2.1789]
[1643805763630,0.24821974,2794.3,2793.2,0.35767]
[1643805763827,0.24821974,2794.3,2793.2,2.35767]
[1643805764227,0.24821974,2794.3,2793.4,0.89473]
[1643805764426,0.1789,2794.2,2793.4,0.89473]
[1643805764627,0.67236765,2794.2,2793.4,0.89473]
[1643805765028,0.67236765,2794.2,2793.4,1.19473]
[1643805765428,0.67236765,2794.2,2793.4,0.89473]
[1643805765638,0.19170162,2794.6,2793.5,0.21154153]
[1643805765833,0.1789,2794.6,2793.6,0.17877]
[1643805766034,0.1789,2794.6,2793.6,0.89474]
[1643805766530,4.4988,2794.7,2793.6,0.89474]
[1643805766731,0.1789,2794.6,2793.6,0.89474]
[1643805766980,0.25059954,2794.2,2793.6,0.89474]
[1643805767880,0.6829811,2793.8,2793.6,0.89474]
[1643805768684,0.6829811,2793.8,2793.5,0.1789]
[1643805768885,0.25059954,2794.2,2793.4,2.12521117]
[1643805769086,0.25059954,2794.2,2793.4,2.10607035]
[1643805769286,0.25059954,2794.2,2793.4,3.10607035]
[1643805769587,0.25059954,2794.2,2793.4,1.1789]
[1643805769786,0.25059954,2794.2,2793.4,2.09716215]
[1643805770186,0.84061098,2794.0,2793.4,2.91826215]
[1643805770588,0.84061098,2794.0,2793.4,1.0]
[1643805770830,0.84061098,2794.0,2793.3,0.65767]
[1643805771023,0.84061098,2794.0,2793.4,1.90489032]
[1643805771228,0.84061098,2794.0,2793.4,2.90489032]
[1643805772629,0.84061098,2794.0,2793.4,1.0]
[1643805772828,0.84061098,2794.0,2793.3,1.65767]
[1643805773227,0.84061098,2794.0,2793.3,0.65767]
[1643805773437,0.1789,2794.6,2793.3,2.65767]
[1643805773636,0.1789,2794.6,2793.6,0.8948]
[1643805773857,0.1789,2794.6,2793.7,0.3]
[1643805774233,0.1789,2794.6,2793.6,0.8948]
[1643805774234,0.1789,2794.6,2793.6,1.8948]
[1643805774475,0.20725051,2794.2,2793.6,1.8948]
[1643805774675,0.78502397,2794.0,2793.6,1.8948]
[1643805775876,0.78502397,2794.0,2793.6,0.8948]
[1643805776983,0.78502397,2794.0,2793.5,1.78935]
[1643805777180,0.78502397,2794.0,2793.1,0.1789]
[1643805777381,0.78502397,2794.0,2793.1,1.0]
[1643805777580,0.78502397,2794.0,2793.0,0.1789]
[1643805777781,0.9482304,2793.4,2793.1,0.28483323]
[1643805777982,0.1789,2794.1,2793.1,0.28483323]
[1643805778936,0.1789,2794.1,2793.1,1.28483323]
[1643805779133,0.1789,2794.1,2793.2,0.28483323]
[1643805779134,0.9315556,2793.9,2793.2,0.28483323]
[1643805779530,0.9315556,2793.9,2793.3,0.28483323]
[1643805779731,0.9315556,2793.9,2793.0,3.25269]
[1643805779931,0.9315556,2793.9,2793.1,0.28416085]
[1643805780631,0.1789,2794.1,2793.1,0.28416085]
[1643805781634,0.93401269,2793.8,2793.1,0.28416085]
[1643805782275,0.1789,2794.1,2793.2,2.8949]
[1643805782481,0.20725051,2794.2,2793.5,1.78951]
[1643805782676,0.20725051,2794.2,2793.6,0.28416085]
[1643805783279,0.94798614,2794.1,2793.6,0.28416085]
[1643805784081,0.20725051,2794.2,2793.6,0.28416085]
[1643805784686,0.20725051,2794.2,2793.5,0.1789]
[1643805784883,1.21656258,2794.1,2793.2,0.1789]
[1643805785083,1.69546258,2794.1,2793.1,1.78984]
[1643805785283,1.21656258,2794.0,2793.2,0.28507066]
[1643805785725,1.21656258,2794.0,2793.1,1.78984]
[1643805785925,0.82256775,2793.5,2793.1,1.78984]
[1643805786128,0.3,2793.4,2793.1,1.78984]
[1643805786726,7.1119,2794.1,2793.2,0.28416638]
[1643805786927,7.1119,2794.1,2793.4,0.89491]
[1643805786928,1.21832095,2794.0,2793.4,0.89491]
[1643805787327,1.21832095,2794.0,2793.1,1.78984]
[1643805787527,1.21832095,2794.0,2793.2,0.28415763]
[1643805787730,0.88862022,2793.5,2793.2,0.28415763]
[1643805788935,5.2874088,2794.1,2793.2,0.28415763]
[1643805789137,1.21894304,2794.0,2793.2,0.28415763]
[1643805790379,0.83051887,2793.5,2793.2,0.28415763]
[1643805791783,0.83051887,2793.5,2792.8,1.78993]
[1643805791978,0.83051887,2793.5,2792.9,0.28451556]
[1643805792582,2.4054,2793.9,2792.9,0.28451556]
[1643805792583,0.94409123,2793.0,2792.9,0.28451556]
[1643805792779,0.516,2793.7,2792.9,0.28451556]
[1643805792980,1.40724566,2793.6,2793.0,0.28451556]
[1643805793226,1.40724566,2793.6,2792.6,1.79022]
[1643805793227,1.22834566,2793.5,2792.6,1.79022]
[1643805793434,0.1789,2793.4,2792.7,0.27657386]
[1643805793636,1.22834566,2793.3,2792.7,0.27657386]
[1643805793833,0.71696815,2793.4,2792.7,0.27657386]
[1643805794035,2.2265,2793.9,2792.8,0.8951]
[1643805794036,0.1789,2793.6,2792.8,0.8951]
[1643805794239,0.1789,2793.7,2792.9,0.27657386]
[1643805794441,1.2282612,2793.6,2792.9,0.27657386]
[1643805794635,0.1789,2793.8,2792.9,0.27657386]
[1643805794835,1.22842829,2793.7,2793.0,1.90206947]
[1643805795035,1.22842829,2793.7,2793.1,0.27657386]
[1643805795238,1.22842829,2793.7,2793.2,1.90398818]
[1643805795435,1.22842829,2793.7,2793.3,0.27657386]
[1643805795836,1.2265,2793.9,2793.3,0.27657386]
[1643805796037,0.1789,2794.0,2793.1,2.78351603]
[1643805796238,3.2833,2794.1,2793.5,0.8223523]
[1643805796441,0.1789,2794.3,2793.6,1.92020497]
[1643805796640,0.1789,2794.5,2793.6,1.92020497]
[1643805796838,5.0961,2794.6,2793.8,0.23411938]
[1643805797086,5.0961,2794.6,2793.6,2.92020497]
[1643805797087,5.0961,2794.6,2793.9,0.1789]
[1643805797277,1.1511,2794.6,2793.9,0.1789]
[1643805797678,1.1511,2794.6,2794.0,1.78933]
[1643805797881,3.3185,2794.7,2794.0,1.78933]
[1643805798481,0.77698604,2794.4,2794.0,1.78933]
[1643805799283,3.3185,2794.7,2794.0,1.78933]
[1643805800484,0.74907296,2794.5,2794.0,1.78933]
[1643805800936,0.18567365,2795.3,2794.1,2.3]
[1643805801136,0.8946815,2795.9,2795.0,1.0]
[1643805801137,0.68011823,2795.7,2795.0,1.0]
[1643805801334,0.00171226,2796.3,2795.6,0.01203424]
[1643805801542,1.72555212,2796.8,2796.2,0.01240637]
[1643805801736,0.61491392,2797.2,2796.3,0.1787]
[1643805801931,3.07882431,2797.5,2796.3,0.1787]
[1643805801932,0.23964587,2797.4,2796.6,0.93145762]
[1643805802134,1.8162409,2797.5,2796.9,0.89363]
[1643805802340,1.8162409,2797.5,2797.0,0.1787]
[1643805802537,1.8162409,2797.5,2797.1,6.45]
[1643805802731,1.8162409,2797.5,2797.2,0.516]
[1643805803334,1.8162409,2797.5,2797.2,0.6947]
[1643805803740,0.19350903,2797.8,2797.2,1.58819]
[1643805804037,0.71740376,2798.0,2797.2,1.40949]
[1643805804489,0.1787,2798.2,2797.2,1.40949]
[1643805804677,0.1787,2798.3,2797.2,1.40949]
[1643805805099,0.19340606,2797.8,2797.2,1.40949]
[1643805805478,0.1787,2798.3,2797.2,1.40949]
[1643805806278,2.24390015,2798.3,2797.2,1.40949]
[1643805806480,0.24743945,2797.6,2797.2,1.40949]
[1643805806685,0.24743945,2797.6,2797.2,0.516]
[1643805806686,2.0,2797.5,2797.2,0.516]
[1643805807082,0.1787,2797.4,2796.6,2.30358]
[1643805807485,0.68077227,2796.9,2796.6,1.78758]
[1643805807679,0.19353759,2796.5,2796.2,0.1787]
[1643805808084,5.65,2796.3,2795.6,1.63980474]
[1643805808345,2.0,2796.8,2795.5,0.144]
[1643805808346,0.1787,2796.8,2795.5,0.144]
[1643805808542,0.4787,2796.8,2795.6,0.3148]
[1643805808744,0.82838967,2796.3,2795.6,0.1788]
[1643805808940,0.82838967,2796.3,2795.5,0.89404]
[1643805809141,0.89261287,2795.8,2795.6,0.1787]
[1643805809342,0.89261287,2795.8,2795.7,1.78818]
[1643805809541,0.1787,2796.7,2795.7,1.78818]
[1643805809743,0.1787,2796.7,2795.5,0.14]
[1643805809944,0.1787,2796.7,2795.6,0.1787]
[1643805810147,0.1787,2796.7,2795.5,0.3187]
[1643805810341,1.1787,2796.9,2795.5,0.1787]
[1643805810540,1.1787,2796.9,2795.5,0.1368]
[1643805810541,0.23760854,2795.8,2795.5,0.1368]
[1643805810744,0.1787,2796.9,2795.6,0.1787]
[1643805810945,0.1787,2796.9,2795.7,0.89408]
[1643805811142,0.3,2797.0,2795.8,0.1787]
[1643805811342,6.9344,2797.4,2795.6,1.9077]
[1643805811343,1.1787,2797.3,2795.6,1.9077]
[1643805811542,2.0,2797.2,2795.6,2.0437]
[1643805811742,0.19686229,2796.4,2795.7,0.17877]
[1643805811983,0.19686229,2796.4,2795.9,0.89385]
[1643805812185,0.19686229,2796.4,2796.0,0.1787]
[1643805812384,0.19686229,2796.4,2796.1,0.89385]
[1643805812585,0.19686229,2796.4,2796.0,0.1787]
[1643805813391,0.67382503,2796.6,2796.0,0.1787]
[1643805813591,0.1787,2797.1,2796.0,0.1787]
[1643805813991,0.1787,2797.1,2796.0,1.1787]
[1643805814192,0.1787,2797.1,2796.1,0.89384]
[1643805814395,0.1787,2797.1,2796.3,0.89379]
[1643805814591,0.26373032,2796.8,2796.3,0.89379]
[1643805814792,1.0616415,2796.8,2796.3,1.89379]
[1643805815192,0.79791118,2796.8,2796.5,0.89379]
[1643805815399,0.1787,2797.6,2796.5,0.89379]
[1643805815596,0.1787,2797.8,2796.5,0.89379]
[1643805815834,0.1787,2798.0,2796.5,0.90628161]
[1643805816033,0.1787,2798.0,2796.5,1.90628161]
[1643805816433,0.23365615,2797.0,2796.5,1.90628161]
[1643805816635,0.23365615,2797.0,2796.5,1.89379]
[1643805817637,0.80464073,2797.1,2796.6,1.91154422]
[1643805817839,0.80464073,2797.1,2796.6,4.69889422]
[1643805818042,0.1787,2798.0,2796.6,4.69889422]
[1643805818235,1.1787,2798.1,2796.7,0.89363]
[1643805818439,0.1787,2798.1,2796.8,2.2043551]
[1643805818742,0.22433922,2797.3,2796.8,2.2043551]
[1643805818940,0.22433922,2797.3,2796.6,1.96605]
[1643805819140,0.22433922,2797.3,2796.6,1.78735]
[1643805819604,0.1787,2798.1,2796.7,1.93050338]
[1643805819807,1.1787,2798.1,2796.7,1.93050338]
[1643805820004,0.71218485,2797.2,2796.8,1.78744]
[1643805820406,1.1787,2798.1,2796.8,1.78744]
[1643805820714,0.20236588,2797.6,2796.8,1.78744]
[1643805822211,0.85168702,2797.2,2796.8,1.78744]
[1643805827889,1.1659,2798.4,2797.4,0.38002814]
[1643805827890,0.09999,2798.0,2797.4,0.38002814]
[1643805828092,0.007,2798.4,2797.5,2.0]
[1643805828093,0.09998,2798.3,2797.5,2.0]
[1643805828295,0.09998,2798.3,2797.4,1.0155]
[1643805828495,0.007,2798.4,2797.5,0.1786]
[1643805828891,0.71848031,2798.0,2797.5,0.1786]
[1643805829489,0.71848031,2798.0,2797.3,0.13819997]
[1643805830293,0.71848031,2798.0,2797.3,2.03760825]
[1643805830493,0.1,2798.3,2797.4,0.89358]
[1643805830733,0.007,2798.4,2797.5,2.32133995]
[1643805831532,0.007,2798.4,2797.4,1.71478]
[1643805831733,0.007,2798.4,2797.4,1.31328]
[1643805831734,0.95486958,2798.1,2797.4,1.31328]
[1643805833036,0.95486958,2798.1,2797.4,1.07228]
[1643805833441,0.737228,2798.1,2797.4,1.07228]
[1643805834038,0.737228,2798.1,2797.4,0.89358]
[1643805834887,0.2310544,2797.9,2797.4,0.89358]
[1643805835088,0.737228,2798.1,2797.4,0.89358]
[1643805835388,0.737228,2798.1,2797.4,2.47488]
[1643805835791,0.1787,2798.3,2797.5,0.90777]
[1643805835991,0.007,2798.4,2797.5,1.6924451]
[1643805836199,0.007,2798.4,2797.6,1.78701]
[1643805836393,0.007,2798.4,2797.8,0.89344]
[1643805836590,0.007,2798.4,2797.6,1.78701]
[1643805836791,0.01,2799.3,2798.3,0.01201595]
[1643805836792,0.1786,2799.3,2798.3,0.01201595]
[1643805836992,0.01,2799.5,2798.3,0.01201595]
[1643805836993,0.1786,2799.4,2798.4,0.1786]
[1643805837189,0.88508865,2799.0,2798.4,1.96497]
[1643805837390,0.88508865,2799.0,2798.4,2.8581]
[1643805837589,0.88508865,2799.0,2798.4,1.96497]
[1643805838252,0.88508865,2799.0,2798.4,0.1786]
[1643805838655,1.06368865,2799.0,2798.4,0.1786]
[1643805839053,0.1786,2799.2,2798.0,1.96524]
[1643805839455,0.04035807,2799.1,2798.0,1.96524]
[1643805839854,0.25703003,2799.1,2798.0,1.96524]
[1643805840257,0.84576303,2798.7,2798.0,1.96524]
[1643805840456,0.84576303,2798.7,2798.0,1.78664]
[1643805840753,0.1786,2799.0,2798.1,1.94267877]
[1643805840955,0.1786,2799.1,2798.1,1.94267877]
[1643805841154,0.1786,2799.3,2798.1,1.94267877]
[1643805841360,1.16446631,2799.2,2798.1,2.12127877]
[1643805841556,1.17446631,2799.2,2798.1,2.12127877]
[1643805841756,1.20482438,2799.1,2798.1,2.12127877]
[1643805841979,0.94190783,2799.0,2798.1,2.12127877]
[1643805842180,0.04035807,2799.1,2798.1,2.12127877]
[1643805842382,1.18976824,2799.0,2798.1,2.12127877]
[1643805843086,1.18976824,2799.0,2797.6,2.67987]
[1643805843087,0.99999999,2798.6,2797.6,2.67987]
[1643805843289,0.99999999,2798.6,2797.0,1.78685]
[1643805843290,3.38058134,2798.5,2797.0,1.78685]
[1643805843489,1.1899109,2798.4,2797.1,7.0]
[1643805843687,0.1787,2798.3,2797.4,0.22135652]
[1643805843894,0.90134747,2798.1,2797.4,0.22135652]
[1643805844087,0.1787,2798.4,2797.4,0.22135652]
[1643805844285,0.1787,2798.5,2797.3,0.5196]
[1643805844492,0.1787,2798.5,2797.3,0.2175]
[1643805844493,1.19209804,2798.4,2797.3,0.2175]
[1643805844687,0.1787,2798.3,2797.3,0.2175]
[1643805844889,0.1787,2798.8,2797.4,2.30095851]
[1643805845089,0.04035807,2799.1,2798.0,0.01219385]
[1643805845288,1.19465972,2799.0,2798.1,0.6076]
[1643805845488,0.92750392,2798.6,2798.1,0.6076]
[1643805845741,0.92750392,2798.6,2798.1,0.1786]
[1643805845936,1.19478387,2798.5,2798.0,2.57318]
[1643805846135,0.92750392,2798.6,2798.0,2.57318]
[1643805846337,0.1786,2799.0,2798.0,2.24528]
[1643805846541,1.19524605,2798.9,2798.0,2.24528]
[1643805846736,1.19524605,2798.9,2798.0,1.78648]
[1643805846934,1.19524605,2798.9,2797.8,1.96512]
[1643805847137,1.19524605,2798.9,2797.8,0.1786]
[1643805847138,0.1786,2798.8,2797.8,0.1786]
[1643805847337,0.99999999,2799.4,2797.8,0.1786]
[1643805847338,0.77583865,2799.7,2798.1,6.4]
[1643805847540,1.1106382,2800.1,2798.1,6.4]
[1643805847541,0.90107109,2800.2,2799.4,0.28675267]
[1643805847743,0.67564018,2801.0,2800.1,0.01294832]
[1643805847937,2.0,2800.9,2800.2,0.1784]
[1643805848137,2.0,2801.4,2800.2,0.1784]
[1643805848341,2.0,2801.4,2799.5,0.1785]
[1643805848342,0.07881,2801.3,2799.5,0.1785]
[1643805848541,0.07881,2801.3,2800.0,0.0129769]
[1643805848542,1.75445017,2801.3,2800.0,0.0129769]
[1643805848739,0.1784,2800.7,2799.5,0.1785]
[1643805848939,0.99999999,2800.4,2799.2,0.1784]
[1643805849146,2.1784,2800.3,2798.9,0.1784]
[1643805849343,3.7839,2800.3,2798.8,0.1784]
[1643805849608,3.7839,2800.3,2798.9,1.32196]
[1643805849609,2.0,2800.2,2798.9,1.32196]
[1643805849788,0.1786,2800.1,2798.9,0.429]
[1643805849992,0.1786,2800.2,2798.9,0.429]
[1643805850590,0.7851715,2799.6,2798.9,0.429]
[1643805850787,1.3998,2800.2,2799.6,0.47159682]
[1643805850987,0.1786,2800.2,2798.9,0.89297]
[1643805851191,0.1786,2800.7,2799.2,0.01211481]
[1643805851389,0.1786,2800.7,2799.3,0.429]
[1643805851795,0.26839602,2800.4,2799.3,0.429]
[1643805851993,0.1784,2800.3,2799.3,0.429]
[1643805854143,0.8993049,2800.1,2799.3,0.429]
[1643805855043,0.1784,2800.3,2799.3,0.429]
[1643805855247,0.1784,2800.7,2799.4,0.17877]
[1643805855443,0.1784,2800.7,2799.5,1.32175]
[1643805855647,0.1784,2800.7,2799.6,0.1784]
[1643805855844,0.1784,2800.7,2799.7,0.429]
[1643805856252,0.39163214,2800.7,2799.7,0.429]
[1643805856444,0.1784,2800.7,2799.7,0.429]
[1643805856852,0.1784,2800.7,2799.8,0.17877]
[1643805857096,0.05,2800.8,2800.0,0.89258]
[1643805857292,0.05,2800.8,2800.1,0.78617]
[1643805857491,0.05,2800.8,2800.1,1.00045984]
[1643805857694,0.05,2800.8,2800.1,1.78617]
[1643805857891,0.05,2800.8,2800.1,0.6074]
[1643805858191,0.05,2800.8,2800.1,1.6074]